fUSD/lending_fUSD_20250926
["ID","MTS","AMOUNT","RATE_DAILY","PERIOD"]
[387825970,1758895842615,-512.7,0.00019041,2]
[387825971,1758895842625,-2799.78989589,0.000191,2]
[387825972,1758895842635,-806.23,0.00019141,2]
[387825973,1758895842645,-290.17,0.00019141,2]
[387825974,1758895842666,-150.0,0.0001918,2]
[387825975,1758895842676,-906.48726244,0.00019181,2]
[387825976,1758895842687,-2799.78989581,0.00019189,2]
[387825977,1758895842697,-943.7,0.000192,2]
[387825978,1758895842708,-806.23,0.000192,2]
[387825979,1758895842718,-200.0,0.000192,7]
[387825981,1758895842728,-2799.78989581,0.00019278,2]
[387825982,1758895842738,-1087.37,0.00019278,2]
[387825983,1758895842748,-500.0,0.000193,7]
[387825984,1758895842758,-806.23,0.00019302,2]
[387825985,1758895842768,-2799.78989581,0.00019367,2]
[387825986,1758895842778,-623.0,0.00019397,2]
[387825987,1758895842788,-1876.98458986,0.00019399,2]
[387825988,1758895842799,-800.0,0.000194,7]
[387825989,1758895842809,-2799.78989581,0.00019456,2]
[387825990,1758895842819,-1000.0,0.000195,7]
[387825991,1758895842829,-284.82,0.00019514,2]
[387825992,1758895842839,-2799.78989581,0.00019544,2]
[387825993,1758895842849,-621.62303772,0.00019549,2]
[387825994,1758895842859,-575.36578309,0.0001957,2]
[387825995,1758895842868,-1300.0,0.000196,7]
[387825996,1758895842878,-2799.78989581,0.00019633,2]
[387825997,1758895842888,-14407.47204279,0.00019657,2]
[387825998,1758895842898,-322.6107,0.00019658,2]
[387825999,1758895842908,-150.0,0.0001966,2]
[387826000,1758895842918,-1000.0,0.000197,2]
[387826001,1758895842928,-200.0,0.000197,7]
[387826002,1758895842939,-1783.99836807,0.000197,2]
[387826003,1758895842949,-2799.78989581,0.00019722,2]
[387826004,1758895842960,-575.3158012,0.00019726,2]
[387826005,1758895842970,-194.18281893,0.00019729,2]
[387826006,1758895842979,-150.0,0.00019729,2]
[387826007,1758895842989,-1425.0,0.00019736,2]
[387826008,1758895842999,-395.50048763,0.00019741,2]
[387826009,1758895843010,-150.0,0.00019745,2]
[387826010,1758895843020,-1425.0,0.00019748,2]
[387826011,1758895843030,-1425.0,0.00019758,2]
[387826012,1758895843040,-150.0,0.00019758,2]
[387826013,1758895843050,-150.0,0.00019774,2]
[387826014,1758895843059,-1000.0,0.00019776,2]
[387826015,1758895843068,-1006.19049465,0.00019778,2]
[387826016,1758895843083,-150.0,0.00019781,2]
[387826017,1758895843092,-1425.0,0.00019783,2]
[387826018,1758895843102,-1000.0,0.00019784,2]
[387826019,1758895843111,-1425.0,0.00019789,2]
[387826020,1758895843122,-1425.0,0.00019792,2]
[387826021,1758895843132,-8323.5657,0.000198,2]
[387826022,1758895843142,-1000.0,0.000198,2]
[387826023,1758895843154,-200.0,0.000198,7]
[387826024,1758895843164,-1000.0,0.00019807,2]
[387826025,1758895843174,-1425.0,0.0001981,2]
[387826026,1758895843185,-2799.78989581,0.00019811,2]
[387826027,1758895843196,-1000.0,0.00019814,2]
[387826028,1758895843206,-1000.0,0.00019817,2]
[387826029,1758895843216,-150.0,0.00019822,2]
[387826030,1758895843227,-1425.0,0.0001984,2]
[387826032,1758895843238,-537.48264878,0.00019841,2]
[387826034,1758895843248,-181.72962936,0.00019846,2]
[387826036,1758895843260,-537.48264878,0.00019847,2]
[387826038,1758895843280,-150.0,0.00019849,2]
[387826039,1758895843296,-765.14448515,0.00019851,2]
[387826040,1758895843306,-537.48264878,0.00019853,2]
[387826041,1758895843316,-41777.28034632,0.00019854,2]
[387826042,1758895843325,-166.70113966,0.00019866,2]
[387826043,1758895843335,-950.86352498,0.00019871,2]
[387826044,1758895843345,-166.70113965,0.00019872,2]
[387826045,1758895843355,-1425.0,0.00019872,2]
[387826046,1758895843364,-765.14448515,0.00019872,2]
[387826047,1758895843374,-537.48264878,0.00019875,2]
[387826048,1758895843384,-41777.28034632,0.00019876,2]
[387826049,1758895843393,-1000.0,0.00019876,2]
[387826050,1758895843403,-166.70113965,0.00019877,2]
[387826051,1758895843412,-166.70113965,0.00019883,2]
[387826052,1758895843421,-5629.25698834,0.00019887,2]
[387826053,1758895843432,-537.48264878,0.00019888,2]
[387826054,1758895843441,-169.87895185,0.00019888,2]
[387826055,1758895843450,-166.70113965,0.00019889,2]
[387826056,1758895843460,-5629.25698834,0.0001989,2]
[387826057,1758895843469,-1425.0,0.00019893,2]
[387826058,1758895843479,-5629.25698834,0.00019893,2]
[387826059,1758895843488,-950.86352498,0.00019894,2]
[387826060,1758895843498,-166.70113965,0.00019894,2]
[387826061,1758895843507,-5629.25698834,0.00019897,2]
[387826062,1758895843517,-181.72962936,0.00019897,2]
[387826063,1758895843526,-5000.0,0.00019899,2]
[387826064,1758895843536,-226.47510617,0.00019899,2]
[387826065,1758895843546,-762.304458,0.00019899,2]
[387826066,1758895843555,-950.86352498,0.00019899,2]
[387826067,1758895843565,-762.30445798,0.000199,2]
[387826068,1758895843574,-5629.25698834,0.000199,2]
[387826069,1758895843584,-575.36578309,0.000199,2]
[387826070,1758895843593,-1340.0,0.000199,2]
[387826071,1758895843602,-200.0,0.000199,7]
[387826072,1758895843612,-169.87895185,0.000199,2]
[387826073,1758895843621,-166.70113965,0.000199,2]
[387826074,1758895843630,-2799.78989581,0.000199,2]
[387826075,1758895843640,-762.30445798,0.000199,2]
[387826076,1758895843649,-6368.68691406,0.000199,2]
[387826077,1758895843672,-152.293,0.00019901,2]
[387826078,1758895843682,-537.48264878,0.00019905,2]
[387826079,1758895843692,-3643.749,0.00019907,2]
[387826080,1758895843701,-765.14448515,0.0001991,2]
[387826081,1758895843711,-181.72962936,0.00019914,2]
[387826082,1758895843721,-1425.0,0.00019915,2]
[387826083,1758895843730,-765.14448515,0.00019918,2]
[387826084,1758895843740,-5888.0,0.00019929,2]
[387826085,1758895843750,-41777.28034632,0.00019929,2]
[387826086,1758895843759,-181.72962936,0.0001993,2]
[387826087,1758895843769,-41777.28034632,0.00019931,2]
[387826088,1758895843778,-150.0,0.00019932,2]
[387826089,1758895843788,-950.86352498,0.00019937,2]
[387826090,1758895843798,-41777.28034632,0.00019941,2]
[387826091,1758895843808,-765.14448515,0.00019947,2]
[387826092,1758895843817,-41777.28034632,0.00019947,2]
[387826093,1758895843827,-950.86352498,0.00019956,2]
[387826094,1758895843837,-537.48264878,0.00019961,2]
[387826095,1758895843847,-151.0,0.00019964,2]
[387826096,1758895843856,-765.14448515,0.00019965,2]
[387826097,1758895843866,-382.14328071,0.00019966,2]
[387826098,1758895843875,-950.86352498,0.00019966,2]
[387826099,1758895843885,-1229.0,0.00019967,2]
[387826100,1758895843894,-151.0,0.00019967,2]
[387826101,1758895843904,-1229.0,0.00019967,2]
[387826102,1758895843913,-151.0,0.00019967,2]
[387826103,1758895843923,-1229.0,0.00019967,2]
[387826104,1758895843934,-159.30599452,0.00019967,2]
[387826105,1758895843943,-1229.0,0.00019967,2]
[387826106,1758895843953,-1229.0,0.00019967,2]
[387826107,1758895843962,-818.0,0.00019967,2]
[387826108,1758895843972,-1229.0,0.00019967,2]
[387826109,1758895843982,-818.0,0.00019967,2]
[387826110,1758895843991,-151.0,0.00019967,2]
[387826111,1758895844001,-1229.0,0.00019967,2]
[387826112,1758895844011,-818.0,0.00019967,2]
[387826113,1758895844023,-151.0,0.00019967,2]
[387826114,1758895844033,-1229.0,0.00019967,2]
[387826115,1758895844044,-818.0,0.00019967,2]
[387826116,1758895844055,-151.0,0.00019967,2]
[387826117,1758895844064,-1229.0,0.00019967,2]
[387826118,1758895844077,-818.0,0.00019967,2]
[387826119,1758895844088,-151.0,0.00019967,2]
[387826120,1758895844097,-818.0,0.00019967,2]
[387826121,1758895844107,-151.0,0.00019967,2]
[387826122,1758895844117,-1229.0,0.00019967,2]
[387826123,1758895844128,-818.0,0.00019967,2]
[387826125,1758895844138,-151.0,0.00019967,2]
[387826126,1758895844148,-1229.0,0.00019967,2]
[387826127,1758895844157,-818.0,0.00019967,2]
[387826128,1758895844167,-151.0,0.00019967,2]
[387826129,1758895844177,-1229.0,0.00019967,2]
[387826130,1758895844188,-151.0,0.00019967,2]
[387826131,1758895844198,-818.0,0.00019967,2]
[387826132,1758895844208,-1229.0,0.00019967,2]
[387826133,1758895844218,-151.0,0.00019967,2]
[387826134,1758895844227,-818.0,0.00019967,2]
[387826135,1758895844237,-1229.0,0.00019967,2]
[387826136,1758895844247,-151.0,0.00019967,2]
[387826138,1758895844257,-818.0,0.00019967,2]
[387826140,1758895844266,-1229.0,0.00019967,2]
[387826142,1758895844276,-151.0,0.00019967,2]
[387826143,1758895844285,-818.0,0.00019967,2]
[387826144,1758895844295,-1229.0,0.00019967,2]
[387826145,1758895844305,-151.0,0.00019967,2]
[387826146,1758895844315,-818.0,0.00019967,2]
[387826147,1758895844324,-1229.0,0.00019967,2]
[387826149,1758895844334,-151.0,0.00019967,2]
[387826150,1758895844343,-818.0,0.00019967,2]
[387826151,1758895844353,-1229.0,0.00019967,2]
[387826152,1758895844362,-151.0,0.00019967,2]
[387826153,1758895844372,-818.0,0.00019967,2]
[387826155,1758895844382,-1229.0,0.00019967,2]
[387826156,1758895844391,-818.0,0.00019967,2]
[387826157,1758895844400,-151.0,0.00019967,2]
[387826158,1758895844410,-818.0,0.00019967,2]
[387826159,1758895844419,-1229.0,0.00019967,2]
[387826160,1758895844429,-302.0,0.00019967,2]
[387826161,1758895844440,-818.0,0.00019967,2]
[387826162,1758895844450,-1229.0,0.00019967,2]
[387826163,1758895844460,-818.0,0.00019967,2]
[387826164,1758895844469,-1229.0,0.00019967,2]
[387826165,1758895844479,-818.0,0.00019967,2]
[387826166,1758895844489,-1229.0,0.00019967,2]
[387826167,1758895844499,-818.0,0.00019967,2]
[387826168,1758895844508,-1229.0,0.00019967,2]
[387826169,1758895844518,-818.0,0.00019967,2]
[387826170,1758895844528,-623.88672423,0.00019967,2]
[387826171,1758895844538,-818.0,0.00019967,2]
[387826172,1758895844548,-818.0,0.00019967,2]
[387826173,1758895844558,-818.0,0.00019967,2]
[387826174,1758895844764,-818.0,0.00019967,2]
[387826175,1758895844784,-818.0,0.00019967,2]
[387826176,1758895844794,-915.07767401,0.00019967,2]
[387826177,1758895844803,-151.0,0.00019967,2]
[387826178,1758895844812,-151.0,0.00019967,2]
[387826179,1758895844822,-151.0,0.00019967,2]
[387826180,1758895844831,-151.0,0.00019967,2]
[387826181,1758895844841,-302.0,0.00019967,2]
[387826182,1758895844851,-1229.0,0.00019967,2]
[387826183,1758895844861,-1229.0,0.00019967,2]
[387826184,1758895844870,-1229.0,0.00019967,2]
[387826185,1758895844879,-151.0,0.00019967,2]
[387826186,1758895844888,-151.0,0.00019967,2]
[387826187,1758895844898,-151.0,0.00019967,2]
[387826188,1758895844907,-151.0,0.00019967,2]
[387826189,1758895844917,-151.0,0.00019967,2]
[387826190,1758895844926,-151.0,0.00019967,2]
[387826191,1758895844938,-1229.0,0.00019967,2]
[387826192,1758895844948,-151.0,0.00019967,2]
[387826193,1758895844958,-151.0,0.00019967,2]
[387826194,1758895844968,-1229.0,0.00019967,2]
[387826195,1758895844978,-151.0,0.00019967,2]
[387826196,1758895844988,-151.0,0.00019967,2]
[387826197,1758895844997,-1229.0,0.00019967,2]
[387826198,1758895845007,-151.0,0.00019967,2]
[387826199,1758895845017,-151.0,0.00019967,2]
[387826200,1758895845028,-1229.0,0.00019967,2]
[387826201,1758895845038,-151.0,0.00019967,2]
[387826202,1758895845047,-151.0,0.00019967,2]
[387826203,1758895845057,-302.0,0.00019967,2]
[387826204,1758895845067,-151.0,0.00019967,2]
[387826205,1758895845082,-151.0,0.00019967,2]
[387826206,1758895845092,-1229.0,0.00019967,2]
[387826207,1758895845102,-151.0,0.00019967,2]
[387826208,1758895845112,-1229.0,0.00019967,2]
[387826209,1758895845122,-1229.0,0.00019967,2]
[387826210,1758895845132,-1425.0,0.00019967,2]
[387826211,1758895845141,-150.0,0.00019967,2]
[387826212,1758895845155,-857.73,0.00019967,2]
[387826213,1758895845165,-5888.0,0.00019968,2]
[387826214,1758895845174,-69.37201138,0.0001997,2]
[387826215,1758895845259,-747.72204404,0.0001997,2]
[387826216,1758895845270,-607.90594458,0.0001997,2]
[387826217,1758895845280,-502.51971251,0.00019973,2]
[387826218,1758895845290,-348.96093192,0.00019973,2]
[387826219,1758895845300,-501.20797104,0.00019973,2]
[387826220,1758895845309,-500.0,0.00019973,2]
[387826221,1758895845321,-500.0,0.00019973,2]
[387826222,1758895845333,-500.0,0.00019973,2]
[387826223,1758895845343,-500.0,0.00019973,2]
[387826224,1758895845353,-500.0,0.00019973,2]
[387826225,1758895845362,-500.0,0.00019973,2]
[387826226,1758895845371,-505.72663363,0.00019973,2]
[387826227,1758895845381,-312.17880632,0.00019973,2]
[387826228,1758895845511,-187.82119368,0.00019973,2]
[387826229,1758895845520,-203.76800781,0.00019973,2]
[387826230,1758895845685,-296.23199219,0.00019973,2]
[387826231,1758895845695,-222.74428216,0.00019973,2]
[387826233,1758895845706,-500.02861961,0.00019973,2]
[387826234,1758895845715,-500.0,0.00019973,2]
[387826235,1758895845725,-500.0,0.00019973,2]
[387826236,1758895845734,-500.0,0.00019973,2]
[387826237,1758895845744,-500.0,0.00019973,2]
[387826238,1758895845753,-500.0,0.00019973,2]
[387826239,1758895845762,-500.0,0.00019973,2]
[387826240,1758895845771,-537.08543842,0.00019973,2]
[387826241,1758895845781,-500.0,0.00019973,2]
[387826242,1758895845791,-41777.28034632,0.00019973,2]
[387826243,1758895845800,-1425.0,0.00019974,2]
[387826244,1758895845809,-150.0,0.00019976,2]
[387826245,1758895845819,-1425.0,0.0001998,2]
[387826246,1758895845828,-765.14448515,0.0001998,2]
[387826247,1758895845838,-181.72962936,0.00019981,2]
[387826248,1758895845847,-1425.0,0.00019983,2]
[387826249,1758895845858,-950.86352498,0.00019983,2]
[387826250,1758895845868,-181.72962936,0.00019988,2]
[387826251,1758895845877,-150.0,0.00019988,2]
[387826252,1758895845887,-150.0,0.00019988,2]
[387826253,1758895845896,-150.0,0.00019988,2]
[387826254,1758895845905,-150.0,0.00019988,2]
[387826255,1758895845915,-500.0,0.00019988,2]
[387826256,1758895845924,-150.0,0.00019988,2]
[387826257,1758895845935,-150.0,0.00019988,2]
[387826258,1758895845945,-150.0,0.00019988,2]
[387826259,1758895845954,-150.0,0.00019988,2]
[387826260,1758895845964,-150.0,0.00019988,2]
[387826261,1758895845973,-150.0,0.00019988,2]
[387826262,1758895845983,-152.19048897,0.00019988,2]
[387826263,1758895845992,-150.0,0.00019988,2]
[387826264,1758895846002,-500.0,0.00019988,2]
[387826265,1758895846011,-150.0,0.00019988,2]
[387826266,1758895846021,-150.0,0.00019988,2]
[387826267,1758895846031,-500.0,0.00019988,2]
[387826268,1758895846040,-247.08093232,0.00019988,2]
[387826269,1758895846050,-500.0,0.00019988,2]
[387826270,1758895846059,-150.0,0.00019988,2]
[387826271,1758895846069,-150.0,0.00019988,2]
[387826272,1758895846082,-150.0,0.00019988,2]
[387826273,1758895846092,-150.0,0.00019988,2]
[387826274,1758895846101,-150.0,0.00019988,2]
[387826275,1758895846111,-500.0,0.00019988,2]
[387826276,1758895846122,-836.0,0.00019988,2]
[387826277,1758895846131,-150.0,0.00019988,2]
[387826278,1758895846141,-500.0,0.00019988,2]
[387826279,1758895846152,-150.0,0.00019988,2]
[387826280,1758895846162,-500.0,0.00019988,2]
[387826281,1758895846172,-150.0,0.00019988,2]
[387826282,1758895846183,-1094.0,0.00019988,2]
[387826283,1758895846192,-429.0,0.00019988,2]
[387826284,1758895846202,-150.0,0.00019988,2]
[387826285,1758895846211,-500.0,0.00019988,2]
[387826286,1758895846221,-500.0,0.00019988,2]
[387826287,1758895846230,-500.0,0.00019988,2]
[387826288,1758895846240,-2207.0,0.00019988,2]
[387826289,1758895846250,-150.0,0.00019988,2]
[387826290,1758895846259,-150.0,0.00019988,2]
[387826291,1758895846269,-150.0,0.00019988,2]
[387826292,1758895846278,-150.0,0.00019988,2]
[387826293,1758895846288,-150.0,0.00019988,2]
[387826294,1758895846297,-150.0,0.00019988,2]
[387826295,1758895846306,-150.0,0.00019988,2]
[387826296,1758895846315,-181.72962936,0.00019991,2]
[387826297,1758895846325,-150.0,0.00019993,2]
[387826298,1758895846335,-154.01114444,0.00019996,2]
[387826299,1758895846344,-150.0,0.00019996,2]
[387826301,1758895846353,-1245.0,0.00019999,2]
[387826303,1758895846363,-300.0,0.00019999,2]
[387826305,1758895846373,-517420.64749585,0.00019999,2]
[387826307,1758895846383,-155.0,0.00019999,2]
[387826309,1758895846392,-151.0,0.00019999,2]
[387826311,1758895846401,-500.0,0.00019999,2]
[387826312,1758895846410,-151.0,0.00019999,2]
[387826314,1758895846419,-151.0,0.00019999,2]
[387826315,1758895846429,-157.290862,0.00019999,2]
[387826316,1758895846441,-151.0,0.00019999,2]
[387826317,1758895846450,-151.0,0.00019999,2]
[387826318,1758895846459,-151.0,0.00019999,2]
[387826319,1758895846469,-151.0,0.00019999,2]
[387826321,1758895846479,-151.0,0.00019999,2]
[387826323,1758895846488,-151.0,0.00019999,2]
[387826324,1758895846498,-151.0,0.00019999,2]
[387826326,1758895846507,-151.0,0.00019999,2]
[387826327,1758895846516,-500.0,0.00019999,2]
[387826328,1758895846526,-151.0,0.00019999,2]
[387826329,1758895846535,-151.0,0.00019999,2]
[387826330,1758895846544,-151.0,0.00019999,2]
[387826331,1758895846554,-151.0,0.00019999,2]
[387826332,1758895846563,-151.0,0.00019999,2]
[387826333,1758895846572,-444.18054,0.00019999,2]
[387826334,1758895846582,-151.0,0.00019999,2]
[387826335,1758895846591,-444.18054,0.00019999,2]
[387826336,1758895846600,-444.18054,0.00019999,2]
[387826337,1758895846609,-444.18054,0.00019999,2]
[387826338,1758895846619,-151.0,0.00019999,2]
[387826339,1758895846628,-151.0,0.00019999,2]
[387826340,1758895846637,-151.0,0.00019999,2]
[387826341,1758895846647,-157.082102,0.00019999,2]
[387826342,1758895846657,-317.726496,0.00019999,2]
[387826343,1758895846666,-151.0,0.00019999,2]
[387826344,1758895846675,-317.726496,0.00019999,2]
[387826345,1758895846685,-317.726496,0.00019999,2]
[387826346,1758895846696,-317.726496,0.00019999,2]
[387826347,1758895846706,-151.0,0.00019999,2]
[387826348,1758895846715,-156.982852,0.00019999,2]
[387826349,1758895846724,-151.0,0.00019999,2]
[387826350,1758895846733,-151.0,0.00019999,2]
[387826351,1758895846742,-151.0,0.00019999,2]
[387826352,1758895846752,-151.0,0.00019999,2]
[387826353,1758895846762,-151.0,0.00019999,2]
[387826354,1758895846772,-151.0,0.00019999,2]
[387826355,1758895846781,-151.0,0.00019999,2]
[387826356,1758895846790,-151.0,0.00019999,2]
[387826357,1758895846799,-151.0,0.00019999,2]
[387826358,1758895846808,-208.741433,0.00019999,2]
[387826359,1758895846817,-190.321136,0.00019999,2]
[387826360,1758895846827,-208.741433,0.00019999,2]
[387826361,1758895846836,-208.741433,0.00019999,2]
[387826362,1758895846845,-190.321136,0.00019999,2]
[387826363,1758895846854,-208.741433,0.00019999,2]
[387826364,1758895846864,-190.321136,0.00019999,2]
[387826365,1758895846873,-190.321136,0.00019999,2]
[387826366,1758895846882,-208.864295,0.00019999,2]
[387826367,1758895846891,-151.0,0.00019999,2]
[387826368,1758895846900,-208.864295,0.00019999,2]
[387826369,1758895846910,-208.864295,0.00019999,2]
[387826370,1758895846919,-208.864295,0.00019999,2]
[387826371,1758895846928,-151.0,0.00019999,2]
[387826372,1758895846938,-151.516291,0.00019999,2]
[387826373,1758895846948,-151.0,0.00019999,2]
[387826374,1758895846957,-151.0,0.00019999,2]
[387826375,1758895846967,-151.0,0.00019999,2]
[387826376,1758895846976,-274.089002,0.00019999,2]
[387826377,1758895846986,-274.089002,0.00019999,2]
[387826378,1758895846996,-274.089002,0.00019999,2]
[387826379,1758895847006,-155.457541,0.00019999,2]
[387826380,1758895847015,-157.152125,0.00019999,2]
[387826381,1758895847025,-157.152125,0.00019999,2]
[387826382,1758895847035,-157.152125,0.00019999,2]
[387826383,1758895847044,-274.089002,0.00019999,2]
[387826384,1758895847054,-157.152125,0.00019999,2]
[387826385,1758895847063,-151.0,0.00019999,2]
[387826386,1758895847077,-151.0,0.00019999,2]
[387826387,1758895847087,-151.0,0.00019999,2]
[387826388,1758895847096,-161.640771,0.00019999,2]
[387826389,1758895847106,-151.0,0.00019999,2]
[387826390,1758895847115,-151.0,0.00019999,2]
[387826391,1758895847126,-151.0,0.00019999,2]
[387826392,1758895847136,-151.0,0.00019999,2]
[387826393,1758895847145,-151.0,0.00019999,2]
[387826394,1758895847155,-151.0,0.00019999,2]
[387826395,1758895847165,-151.0,0.00019999,2]
[387826396,1758895847175,-4591.7982773,0.00019999,2]
[387826397,1758895847185,-500.0,0.00019999,2]
[387826398,1758895847194,-151.0,0.00019999,2]
[387826399,1758895847204,-151.0,0.00019999,2]
[387826400,1758895847213,-151.0,0.00019999,2]
[387826401,1758895847223,-524.663043,0.00019999,2]
[387826402,1758895847232,-151.0,0.00019999,2]
[387826403,1758895847242,-151.0,0.00019999,2]
[387826404,1758895847251,-524.663043,0.00019999,2]
[387826405,1758895847261,-1451.088717,0.00019999,2]
[387826406,1758895847270,-151.0,0.00019999,2]
[387826407,1758895847279,-151.0,0.00019999,2]
[387826408,1758895847289,-524.663043,0.00019999,2]
[387826409,1758895847299,-1451.088717,0.00019999,2]
[387826410,1758895847308,-151.0,0.00019999,2]
[387826411,1758895847318,-151.0,0.00019999,2]
[387826412,1758895847327,-524.663043,0.00019999,2]
[387826413,1758895847337,-1451.088717,0.00019999,2]
[387826414,1758895847346,-151.0,0.00019999,2]
[387826415,1758895847356,-151.0,0.00019999,2]
[387826416,1758895847366,-1451.088717,0.00019999,2]
[387826417,1758895847375,-710.095332,0.00019999,2]
[387826418,1758895847385,-710.095332,0.00019999,2]
[387826419,1758895847395,-154.324441,0.00019999,2]
[387826420,1758895847405,-710.095332,0.00019999,2]
[387826421,1758895847415,-154.324441,0.00019999,2]
[387826422,1758895847425,-151.0,0.00019999,2]
[387826423,1758895847435,-710.095332,0.00019999,2]
[387826424,1758895847445,-154.324441,0.00019999,2]
[387826425,1758895847454,-151.0,0.00019999,2]
[387826426,1758895847464,-154.324441,0.00019999,2]
[387826427,1758895847474,-151.0,0.00019999,2]
[387826428,1758895847483,-3604.458862,0.00019999,2]
[387826429,1758895847493,-3604.458862,0.00019999,2]
[387826430,1758895847503,-3604.458862,0.00019999,2]
[387826431,1758895847512,-151.0,0.00019999,2]
[387826432,1758895847521,-3604.458862,0.00019999,2]
[387826433,1758895847531,-284.161512,0.00019999,2]
[387826434,1758895847541,-284.161512,0.00019999,2]
[387826435,1758895847550,-284.161512,0.00019999,2]
[387826436,1758895847560,-284.161512,0.00019999,2]
[387826437,1758895847570,-151.0,0.00019999,2]
[387826438,1758895847579,-400.0,0.00019999,2]
[387826439,1758895847588,-250358.35764993,0.00019999,2]
[387826440,1758895847598,-20277.64304285,0.00019999,2]
[387826441,1758895847607,-292994.40585656,0.00019999,2]
[387826442,1758895847621,-1590.40897658,0.00019999,2]
[387826443,1758895847632,-460.21552184,0.00019999,2]
[387826444,1758895847643,-276.489995,0.00019999,2]
[387826445,1758895851146,-295.11892219,0.00018695,2]
[387826446,1758895851159,-204.88107781,0.00018695,2]
[387826447,1758895851169,-500.0,0.00018695,2]
[387826448,1758895851178,-196.25892219,0.00018695,2]
[387826449,1758895851190,-303.74107781,0.00018695,2]
[387826450,1758895851200,-500.0,0.00018695,2]
[387826451,1758895851210,-500.0,0.00018695,2]
[387826452,1758895851219,-3.45794219,0.00018695,2]
[387826453,1758895851231,-496.54205781,0.00018695,2]
[387826454,1758895851240,-265.30435329,0.00018695,2]
[387826455,1758895853357,-245.1127006,0.00018695,2]
[387826456,1758895853366,-5000.0,0.00019899,2]
[387826457,1758895853376,-9523.01114698,0.00019999,2]
[387826458,1758895853519,-324.99243432,0.00019999,2]
[387826459,1758895853531,-8921.460035,0.00019999,2]
[387826460,1758895853542,-994.37499999,0.00019999,2]
[387826461,1758895853579,-287.0203389,0.00019999,2]
[387826462,1758895853595,-2707.80318459,0.00019999,2]
[387826463,1758895853606,-752.46181758,0.00019999,2]
[387826464,1758895853720,-840.37072461,0.00019999,2]
[387826469,1758896014326,171.23,9.416e-05,2]
[387826470,1758896015127,171.23,0.00012555,2]
[387826471,1758896015316,171.23,0.00015693,2]
[387826472,1758896033233,400.0,0.0003,120]
[387826486,1758896454343,-286.53836695,0.000186,2]
[387826487,1758896463372,-178.98760297,0.000186,2]
[387826488,1758896468470,257.85,0.00018566,2]
[387826489,1758896468903,-34.47403008,0.000186,2]
[387826490,1758896468925,-164.47,0.00018617,2]
[387826491,1758896469474,20.6979084,0.00018507,2]
[387826492,1758896469498,279.3020916,0.00018507,2]
[387826493,1758896472029,-200.68062678,0.00018706,2]
[387826495,1758896533122,421.0,0.00030136,120]
[387826505,1758896713334,-178.98760297,0.0001863,2]
[387826506,1758896716033,-283.30196403,0.0001863,2]
[387826507,1758896719021,150.0,0.00018,2]
[387826508,1758896719690,150.0,0.00018,2]
[387826509,1758896719866,150.0,0.00018,2]
[387826510,1758896725269,150.0,0.00018,2]
[387826511,1758896725448,150.0,0.00018,2]
[387826512,1758896728081,150.0,0.00018,2]
[387826513,1758896731134,150.0,0.00018,2]
[387826515,1758896739013,150.0,0.00018,2]
[387826516,1758896742524,150.0,0.00018,2]
[387826517,1758896742673,150.0,0.00018,2]
[387826547,1758896787720,-305.60453605,0.0001863,2]
[387826548,1758896791269,-76.15869495,0.0001863,2]